bitfinex/quotes_ETHUSD_20230902
["timestamp","ask_amount","ask_price","bid_price","bid_amount"]
[1693676819443,11.78253705,1635.8,1635.7,47.52686686]
[1693676820339,10.50331867,1635.8,1635.7,47.52686686]
[1693676821009,10.50331867,1635.8,1635.7,0.48699425]
[1693676822140,11.78258903,1635.8,1635.7,0.48699425]
[1693676822339,11.78258903,1635.8,1635.5,0.1]
[1693676822340,5.59866,1635.6,1635.5,0.1]
[1693676822505,9.71531526,1635.6,1635.5,0.1]
[1693676822703,14.21389776,1635.6,1635.5,0.1]
[1693676822970,17.21389776,1635.6,1635.5,0.1]
[1693676823138,16.81615107,1635.6,1635.5,0.10364908]
[1693676823643,13.81615107,1635.6,1635.5,0.10364908]
[1693676823840,16.81615107,1635.6,1635.5,0.10364908]
[1693676824008,16.81615107,1635.6,1635.5,0.1]
[1693676824438,18.73278733,1635.6,1635.5,0.1]
[1693676825020,18.73209174,1635.6,1635.5,0.1]
[1693676825542,16.07641923,1635.6,1635.5,0.1]
[1693676825740,18.73235435,1635.6,1635.5,0.1]
[1693676825915,13.07641923,1635.6,1635.5,0.1]
[1693676826119,15.73241692,1635.6,1635.5,0.10364782]
[1693676826631,13.07641923,1635.6,1635.5,0.10364782]
[1693676826825,15.73240416,1635.6,1635.5,0.10364782]
[1693676827343,13.07641923,1635.6,1635.5,0.10364782]
[1693676828547,13.07641923,1635.6,1635.2,4.512703]
[1693676828844,0.95745372,1635.3,1635.2,4.512703]
[1693676829041,2.55025979,1635.3,1635.2,1.870403]
[1693676829209,0.95745372,1635.3,1635.2,0.314403]
[1693676829409,0.95745372,1635.3,1635.1,32.226]
[1693676829614,3.23686632,1635.2,1635.1,32.226]
[1693676829812,4.29841738,1635.2,1635.1,8.37665]
[1693676830015,4.29841738,1635.2,1635.1,7.74139489]
[1693676830414,4.78144471,1635.2,1635.1,7.74139489]
[1693676831141,3.08168733,1635.2,1635.1,7.74139489]
[1693676831310,0.48302733,1635.2,1635.1,8.22139489]
[1693676831739,0.48302733,1635.2,1635.1,8.72296427]
[1693676831913,0.63820632,1635.3,1635.1,9.9489107]
[1693676832250,3.29400908,1635.3,1635.2,8.11785404]
[1693676833155,3.29400908,1635.3,1635.2,8.12138593]
[1693676833651,4.25132698,1635.3,1635.2,4.55953189]
[1693676833816,3.61325648,1635.3,1635.2,4.55953189]
[1693676834017,4.09629922,1635.3,1635.2,4.55953189]
[1693676834318,4.09629922,1635.3,1635.2,1.55953189]
[1693676841430,4.73451414,1635.3,1635.2,1.55953189]
[1693676841628,4.09629922,1635.3,1635.2,1.55953189]
[1693676842362,4.73454064,1635.3,1635.2,1.55953189]
[1693676843270,5.37290418,1635.3,1635.2,1.55953189]
[1693676843642,6.54019474,1635.3,1635.2,0.00353189]
[1693676843842,9.20941203,1635.3,1635.2,0.00353189]
[1693676844047,11.38321203,1635.3,1635.2,0.00353189]
[1693676844451,10.10660707,1635.3,1635.2,0.00353189]
[1693676844658,11.38300797,1635.3,1635.2,0.00353189]
[1693676845233,10.10660707,1635.3,1635.2,0.00353189]
[1693676848273,10.10660707,1635.3,1635.1,4.02205931]
[1693676848467,7.48780341,1635.2,1635.1,4.02205931]
[1693676848871,7.48780341,1635.2,1635.1,2.46605931]
[1693676849069,9.25217213,1635.2,1635.1,0.00326466]
[1693676849384,10.4199522,1635.2,1635.1,0.00326466]
[1693676849588,9.13856586,1635.2,1635.1,1.55926466]
[1693676849784,6.69460038,1635.2,1635.1,1.55926466]
[1693676852509,7.33284039,1635.2,1635.1,1.55926466]
[1693676853416,7.33289475,1635.2,1635.1,1.55926466]
[1693676854502,7.3329488,1635.2,1635.1,1.55926466]
[1693676855816,6.69460038,1635.2,1635.1,1.55926466]
[1693676856111,7.33303168,1635.2,1635.1,1.55926466]
[1693676856818,6.69460038,1635.2,1635.1,1.55926466]
[1693676857034,7.33311584,1635.2,1635.1,1.55926466]
[1693676858367,6.69460038,1635.2,1635.1,1.55926466]
[1693676858699,6.69460038,1635.2,1635.1,4.6411187]
[1693676858873,6.69460038,1635.2,1635.1,1.55926466]
[1693676859075,7.49167988,1635.2,1635.1,1.55926466]
[1693676859465,8.76787454,1635.2,1635.1,1.55926466]
[1693676861299,9.93565117,1635.2,1635.1,0.00326466]
[1693676861691,9.93565117,1635.2,1635.1,1.55926466]
[1693676862968,9.13857167,1635.2,1635.1,1.55926466]
[1693676863366,9.13857167,1635.2,1635.1,4.6411187]
[1693676863571,9.13857167,1635.2,1635.1,7.6411187]
[1693676863770,7.97295484,1635.2,1635.1,7.6411187]
[1693676864594,9.1384583,1635.2,1635.1,7.6411187]
[1693676864794,7.97339943,1635.2,1635.1,7.6411187]
[1693676865502,9.13843457,1635.2,1635.1,7.6411187]
[1693676867409,7.97396417,1635.2,1635.1,7.6411187]
[1693676868313,6.69776951,1635.2,1635.1,7.6411187]
[1693676871597,7.33799944,1635.2,1635.1,7.6411187]
[1693676871781,6.37767507,1635.2,1635.1,7.6411187]
[1693676872908,4.78419369,1635.2,1635.1,8.1211187]
[1693676873214,4.78419369,1635.2,1635.1,9.13801946]
[1693676873384,3.08164238,1635.2,1635.1,9.13801946]
[1693676873783,2.59866,1635.2,1635.1,9.13801946]
[1693676875384,2.59866,1635.2,1635.1,8.1211187]
[1693676875921,2.59866,1635.2,1635.1,14.28822557]
[1693676892473,2.59866,1635.2,1635.1,14.28813157]
[1693676895667,2.59866,1635.2,1635.1,14.2881176]
[1693676910482,2.59866,1635.2,1635.1,8.1211187]
[1693676910681,2.59866,1635.2,1635.1,14.28784523]
[1693676910902,2.59866,1635.2,1635.1,16.01467995]
[1693676913716,2.59866,1635.2,1635.1,16.01466541]
[1693676919799,2.1878,1635.3,1635.1,16.01466541]
[1693676919995,2.1878,1635.3,1635.2,12.72856603]
[1693676921092,2.1878,1635.3,1635.2,12.73209303]
[1693676922028,2.1878,1635.3,1635.2,14.28809303]
[1693676931434,2.1878,1635.3,1635.2,14.28807335]
[1693676931800,2.1878,1635.3,1635.2,14.39281306]
[1693676932209,2.1878,1635.3,1635.2,14.28807335]
[1693676933241,2.1878,1635.3,1635.2,14.39281306]
[1693676934635,2.1878,1635.3,1635.2,14.39282488]
[1693676934937,2.1878,1635.3,1635.2,14.88200251]
[1693676948238,3.8906995,1635.3,1635.2,14.88200251]
[1693676955957,5.48423826,1635.3,1635.2,14.40200251]
[1693676956172,6.51672859,1635.3,1635.2,14.40200251]
[1693676956346,6.51672859,1635.3,1635.2,11.32014847]
[1693676956546,7.47758788,1635.3,1635.2,5.15344434]
[1693676956747,7.47790321,1635.3,1635.2,2.15344434]
[1693676956947,7.95527166,1635.3,1635.2,2.15344434]
[1693676958571,6.99441237,1635.3,1635.2,2.15344434]
[1693676965991,5.96192204,1635.3,1635.2,2.15344434]
[1693676968383,3.77412204,1635.3,1635.2,5.23529838]
[1693676968588,2.95586678,1635.5,1635.2,14.88198198]
[1693676968887,2.95586678,1635.5,1635.4,1.556]
[1693676969079,2.95586678,1635.5,1635.4,4.74259375]
[1693676969080,4.54926474,1635.5,1635.4,4.74259375]
[1693676969279,2.55425725,1635.5,1635.4,4.74259375]
[1693676969460,1.59339796,1635.5,1635.4,7.74259375]
[1693676970056,2.55425725,1635.5,1635.4,7.74259375]
[1693676970612,1.59339796,1635.5,1635.4,7.74259375]
[1693676971988,1.59339796,1635.5,1635.4,7.75024688]
[1693676974203,1.59339796,1635.5,1635.4,7.74259375]
[1693676975981,1.59339796,1635.5,1635.4,7.75024688]
[1693676978594,2.23368802,1635.5,1635.4,7.75024688]
[1693676980383,2.23368802,1635.5,1635.4,8.52527157]
[1693676981671,2.23368802,1635.5,1635.4,7.75024688]
[1693676982972,2.23368802,1635.5,1635.4,7.64550717]
[1693676983485,2.23368802,1635.5,1635.4,8.14193772]
[1693676985806,2.18368802,1635.5,1635.4,8.14193772]
[1693676986633,2.18368802,1635.5,1635.4,0.50408368]
[1693676986903,5.87328291,1635.5,1635.4,0.50408368]
[1693676987112,6.63654561,1635.5,1635.4,0.00765313]
[1693676988194,2.59866,1635.1,1635.0,30.57]
[1693676988394,3.23863271,1635.1,1635.0,30.57]
[1693676988807,4.30116463,1635.1,1635.0,30.57]
[1693676989103,2.59866,1635.1,1635.0,38.63762268]
[1693676989305,2.59866,1635.1,1635.0,38.74236239]
[1693676989607,2.59866,1635.1,1635.0,41.74236239]
[1693676989996,2.59866,1635.1,1635.0,42.23880136]
[1693676991214,2.59866,1635.1,1635.0,38.80903272]
[1693676992897,2.59866,1635.1,1635.0,8.23903272]
[1693677011256,2.59866,1635.1,1635.0,5.15717868]
[1693677011961,2.59866,1635.1,1635.0,3.60117868]
[1693677012551,3.04191881,1635.1,1635.0,3.60117868]
[1693677020333,3.04191881,1635.1,1635.0,3.49643897]
[1693677020567,3.61442796,1635.1,1635.0,3.49643897]
[1693677020762,3.04191881,1635.1,1635.0,3.49643897]
[1693677021084,3.04191881,1635.1,1635.0,3.60117868]
[1693677021849,3.04191881,1635.1,1635.0,3.49643897]
[1693677022534,4.74441308,1635.1,1635.0,3.49643897]
[1693677026484,6.33817992,1635.1,1635.0,3.49643897]
[1693677028506,7.29813899,1635.1,1635.0,3.49643897]
[1693677030340,8.36026743,1635.1,1635.0,3.49643897]
[1693677030582,7.72029472,1635.1,1635.0,3.49643897]
[1693677030985,10.1654542,1635.1,1635.0,3.49643897]
[1693677032285,10.1654542,1635.1,1635.0,3.50024141]
[1693677035371,9.00082719,1635.1,1635.0,3.50024141]
[1693677036361,7.72088176,1635.1,1635.0,3.50024141]
[1693677040859,7.72088176,1635.1,1635.0,0.50024141]
[1693677041062,10.4857657,1635.1,1635.0,0.50024141]
[1693677041289,0.63383188,1634.9,1634.7,49.9138871]
[1693677041482,3.23872478,1634.8,1634.7,49.9138871]
[1693677041687,6.94803702,1634.8,1634.7,48.81]
[1693677041892,6.94803702,1634.8,1634.6,0.114]
[1693677041893,9.7137504,1634.8,1634.6,0.114]
[1693677042086,4.25587289,1634.7,1634.6,0.014]
[1693677042286,3.61628489,1634.7,1634.6,0.014]
[1693677042490,4.05594415,1634.7,1634.6,0.014]
[1693677042693,5.30923536,1634.7,1634.6,0.014]
[1693677043289,2.59866,1634.6,1634.5,0.1]
[1693677043510,10.25912742,1634.6,1634.5,0.1]
[1693677043810,13.61880159,1634.6,1634.5,0.1]
[1693677044105,2.64318938,1634.4,1634.3,2.27248372]
[1693677044269,3.28167977,1634.4,1634.3,2.27248372]
[1693677044601,4.34420133,1634.4,1634.3,2.27248372]
[1693677045218,5.93870101,1634.4,1634.3,2.27248372]
[1693677045416,4.34420133,1634.4,1634.3,2.27248372]
[1693677046202,5.93868299,1634.4,1634.3,2.27248372]
[1693677046391,4.34420133,1634.4,1634.3,2.27248372]
[1693677047081,5.93867686,1634.4,1634.3,2.27248372]
[1693677047913,6.25792205,1634.4,1634.3,2.27248372]
[1693677048676,7.17103493,1634.4,1634.3,2.27248372]
[1693677049514,8.44801571,1634.4,1634.3,2.27248372]
[1693677049680,7.17103493,1634.4,1634.3,2.27248372]
[1693677049887,8.44801571,1634.4,1634.3,2.27248372]
[1693677050099,9.6163675,1634.4,1634.3,2.27248372]
[1693677052402,11.21259347,1634.4,1634.3,2.27248372]
[1693677052609,9.6163675,1634.4,1634.3,2.27248372]
[1693677053128,11.21259347,1634.4,1634.3,2.27248372]
[1693677054124,9.93561269,1634.4,1634.3,2.27248372]
[1693677057097,10.37304335,1634.4,1634.3,2.27248372]
[1693677057423,10.37304335,1634.4,1634.3,0.57161737]
[1693677058730,10.37304335,1634.4,1634.3,1.05426915]
[1693677061833,8.77681738,1634.4,1634.3,1.05426915]
[1693677063998,8.77681738,1634.4,1634.2,48.73036164]
[1693677064333,8.52406449,1634.3,1634.2,48.73036164]
[1693677064534,7.25148747,1634.3,1634.2,48.73036164]
[1693677064903,8.52410611,1634.3,1634.2,48.73036164]
[1693677065094,7.25148747,1634.3,1634.2,48.73036164]
[1693677065921,7.58248479,1634.3,1634.2,48.73036164]
[1693677066419,10.24033282,1634.3,1634.2,46.4623261]
[1693677067429,2.59866,1634.2,1634.1,1.82725726]
[1693677067619,2.59866,1633.9,1633.8,0.1]
[1693677067821,4.50720703,1633.9,1633.8,0.1]
[1693677068019,9.29029149,1633.9,1633.8,0.1]
[1693677068221,11.94813952,1633.9,1633.8,0.1]
[1693677068425,11.94813952,1633.9,1633.8,0.20473971]
[1693677068744,8.97180382,1633.9,1633.8,1.76073971]
[1693677068915,8.97180382,1633.9,1633.8,1.66073971]
[1693677071019,8.97180382,1633.9,1633.8,4.66073971]
[1693677071359,7.38174446,1633.9,1633.8,3.10473971]
[1693677072233,7.78615117,1633.9,1633.8,3.10473971]
[1693677072433,7.78615117,1633.9,1633.8,1.4034367]
[1693677072658,7.78615117,1633.9,1633.7,7.756]
[1693677072818,7.64428902,1633.8,1633.7,7.756]
[1693677073159,6.37264255,1633.8,1633.7,3.2]
[1693677073870,6.05465342,1633.8,1633.7,4.756]
[1693677074022,6.05465342,1633.8,1633.7,5.28129519]
[1693677074824,6.05465342,1633.8,1633.7,8.28129519]
[1693677075059,6.05465342,1633.8,1633.7,7.756]
[1693677075265,6.05465342,1633.8,1633.7,3.2]
[1693677075266,6.37264255,1633.8,1633.7,3.2]
[1693677075563,6.69163149,1633.8,1633.7,7.79057]
[1693677075760,6.69163149,1633.8,1633.7,12.38137]
[1693677076228,9.35004899,1633.8,1633.7,12.38137]
[1693677076427,11.02350438,1633.8,1633.7,10.1126665]
[1693677077359,11.02350438,1633.8,1633.7,11.6686665]
[1693677078261,14.10535842,1633.8,1633.6,0.007]
[1693677078566,5.427821,1633.6,1633.5,53.50825]
[1693677078742,10.21090546,1633.6,1633.5,55.06425]
[1693677078927,11.42263321,1633.6,1633.5,55.06425]
[1693677079123,13.32900526,1633.6,1633.5,55.06425]
[1693677079325,14.08159861,1633.6,1633.5,55.06425]
[1693677079535,14.08159861,1633.6,1633.5,6.25425]
[1693677080173,15.98744455,1633.6,1633.5,6.25425]
[1693677080868,1.58823477,1633.6,1633.5,16.99297]
[1693677081053,0.95320866,1633.6,1633.5,23.07482404]
[1693677081259,2.59866,1633.8,1633.5,22.33676369]
[1693677081578,0.63551369,1633.7,1633.6,6.56185404]
[1693677081780,3.50138872,1634.0,1633.6,8.11785404]
[1693677082077,0.90272872,1634.0,1633.6,4.556]
[1693677082281,0.90272872,1634.0,1633.9,1.556]
[1693677082777,1.24893091,1634.0,1633.9,1.556]
[1693677084461,2.2266382,1634.3,1634.0,1.556]
[1693677084783,2.2266382,1634.4,1634.0,7.63785404]
[1693677084967,2.2266382,1634.5,1634.0,8.40163944]
[1693677085280,2.2266382,1634.5,1634.4,1.556]
[1693677085669,1.27907686,1634.3,1634.1,4.8156]
[1693677085846,1.27907686,1634.3,1634.2,1.556]
[1693677086046,1.27907686,1634.3,1634.2,4.63785404]
[1693677086244,2.98009156,1634.5,1634.2,22.64983944]
[1693677086474,0.32198024,1634.5,1634.4,1.556]
[1693677086684,0.32198024,1634.5,1634.4,4.63785404]
[1693677086980,2.2266382,1634.6,1634.5,1.556]
[1693677087169,2.2266382,1634.6,1634.4,3.08185404]
[1693677087495,0.32198024,1634.5,1634.4,1.38098199]
[1693677087781,8.2e-06,1634.7,1634.5,2.184]
[1693677088085,2.65811132,1634.9,1634.5,8.26585404]
[1693677088291,2.64836844,1635.0,1634.5,8.26585404]
[1693677088450,2.64836844,1635.0,1634.9,2.184]
[1693677089358,2.94762532,1635.0,1634.9,2.184]
[1693677089564,3.50819898,1635.0,1634.9,2.184]
[1693677090086,5.63402182,1635.0,1634.9,2.184]
[1693677091079,7.22838968,1635.0,1634.9,2.184]
[1693677091275,7.22838968,1635.0,1634.9,9.17486]
[1693677092168,7.21462399,1635.0,1634.9,9.17486]
[1693677092369,7.5800193,1635.0,1634.9,9.17486]
[1693677092579,10.23729699,1635.0,1634.9,4.58743]
[1693677093089,13.39882262,1635.0,1634.9,4.58743]
[1693677093289,7.23729699,1635.0,1634.9,4.58743]
[1693677093477,9.8718568,1635.0,1634.9,4.58743]
[1693677093677,7.21457911,1635.0,1634.9,4.58743]
[1693677094295,4.5800193,1635.0,1634.9,4.58743]
[1693677096299,3.08988475,1635.0,1634.9,9.17486]
[1693677096480,6.81007351,1635.0,1634.9,9.17486]
[1693677097285,6.81007351,1635.0,1634.9,4.58743]
[1693677098195,4.5800193,1635.0,1634.9,4.58743]
[1693677099094,6.49113932,1635.0,1634.9,4.58743]
[1693677100871,7.55403782,1635.0,1634.9,4.58743]
[1693677102567,7.55403782,1635.0,1634.7,2.184]
[1693677102772,1.27375827,1634.8,1634.7,2.184]
[1693677102973,6.05684553,1634.8,1634.7,2.184]
[1693677103515,7.64904336,1634.8,1634.6,2.184]
[1693677103816,4.88616134,1634.7,1634.6,2.184]
[1693677104014,4.88616134,1634.7,1634.6,1.05014494]
[1693677104224,6.91733933,1634.7,1634.6,5.63831494]
[1693677104812,5.74656888,1634.7,1634.6,4.58817]
[1693677105111,3.08925272,1634.7,1634.6,6.77217]
[1693677105280,5.74651783,1634.7,1634.6,6.77217]
[1693677106099,2.13408873,1634.7,1634.6,6.77217]
[1693677106431,6.9173477,1634.7,1634.6,6.77217]
[1693677108336,6.9173477,1634.7,1634.6,4.58817]
[1693677108615,6.9173477,1634.7,1634.6,6.77217]
[1693677112345,8.50954553,1634.7,1634.6,6.14817]
[1693677116828,8.50954553,1634.7,1634.6,4.58817]
[1693677117031,3.85095455,1634.6,1634.2,30.57]
[1693677117238,0.63673987,1634.3,1634.1,48.81]
[1693677117524,0.63673987,1634.2,1634.0,0.18365885]
[1693677117950,0.63673987,1634.2,1634.1,4.58964]
[1693677118150,0.63673987,1634.2,1634.1,6.14964]
[1693677121254,0.63673987,1634.2,1634.1,5.51171918]
[1693677121412,3.29444067,1634.2,1634.1,5.51171918]
[1693677121618,1.06169492,1634.2,1634.1,5.51171918]
[1693677121841,3.71939572,1634.2,1634.1,5.51171918]
[1693677123449,3.71993077,1634.2,1634.1,5.51171918]
[1693677124434,4.67538464,1634.2,1634.1,5.51171918]
[1693677125553,4.03841539,1634.2,1634.1,5.51171918]
[1693677126655,6.48329788,1634.2,1634.1,5.51171918]
[1693677127145,5.31412713,1634.2,1634.1,5.51171918]
[1693677127347,4.88917208,1634.2,1634.1,8.59357322]
[1693677127525,4.25365446,1634.2,1634.1,12.07357322]
[1693677127729,3.29642735,1634.2,1634.1,12.07357322]
[1693677127946,3.11680735,1634.2,1634.1,12.07357322]
[1693677128252,2.05360476,1634.2,1634.1,13.45529643]
[1693677128454,1.70162347,1634.2,1634.1,13.45529643]
[1693677128831,0.63842088,1634.2,1634.1,13.45529643]
[1693677129955,0.93715562,1634.2,1634.1,13.45529643]
[1693677130464,1.70179959,1634.2,1634.1,13.45529643]
[1693677130626,0.63870858,1634.2,1634.1,13.45529643]
[1693677130954,0.93744332,1634.2,1634.1,13.45529643]
[1693677131154,0.63870858,1634.2,1634.1,13.45529643]
[1693677131363,0.38265967,1634.2,1634.1,13.45529643]
[1693677131656,0.38234101,1634.2,1634.1,13.45529643]
[1693677131855,1.27741716,1634.4,1634.1,13.45529643]
[1693677132059,1.27741716,1634.4,1634.2,7.90738368]
[1693677132529,0.27679078,1634.3,1634.2,7.90738368]
[1693677132730,1.27741716,1634.4,1634.2,7.90738368]
[1693677132932,1.27741716,1634.5,1634.2,7.90738368]
[1693677133151,0.30074221,1634.3,1634.2,7.90738368]
[1693677133562,1.27741716,1634.5,1634.2,7.90738368]
[1693677133862,1.27741716,1634.5,1634.3,0.79073837]
[1693677134026,1.27741716,1634.5,1634.4,3.08185404]
[1693677134858,3.40335918,1634.5,1634.4,3.08185404]
[1693677135064,1.27741716,1634.5,1634.4,3.08185404]
[1693677135645,1.27741716,1634.5,1634.4,21.43717404]
[1693677136036,1.27741716,1634.5,1634.4,19.91532]
[1693677138464,2.55303184,1634.5,1634.4,19.91532]
[1693677138685,0.95852327,1634.5,1634.4,19.91532]
[1693677138861,2.55303184,1634.5,1634.4,19.91532]
[1693677139869,0.95852327,1634.5,1634.4,19.91532]
[1693677140061,2.55303184,1634.5,1634.4,19.91532]
[1693677140366,1.25939546,1634.5,1634.4,19.91532]
[1693677140550,0.30087219,1634.5,1634.4,19.91532]
[1693677140971,0.95852327,1634.6,1634.4,19.91532]
[1693677141289,0.95852327,1634.5,1634.4,15.32649]
[1693677141448,0.95852327,1634.5,1634.4,9.17766]
[1693677141647,5.29891428,1634.5,1634.4,9.17766]
[1693677143438,4.13126119,1634.5,1634.4,9.17766]
[1693677145473,5.2991715,1634.5,1634.4,4.58883]
[1693677145671,6.3309472,1634.5,1634.4,4.58883]
[1693677149570,7.92771865,1634.5,1634.4,4.58883]
[1693677151698,8.99089691,1634.5,1634.4,4.58883]
[1693677152667,7.39412546,1634.5,1634.4,4.58883]
[1693677152864,8.99089691,1634.5,1634.4,4.58883]
[1693677155383,6.36234976,1634.5,1634.4,6.14883]
[1693677155714,5.19476441,1634.5,1634.4,6.14883]
[1693677155921,3.91734725,1634.5,1634.4,6.14883]
[1693677160525,4.55668301,1634.5,1634.4,6.14883]
[1693677160909,2.00338621,1634.5,1634.4,6.14883]
[1693677161217,1.70251402,1634.5,1634.4,7.222599]
[1693677161420,0.63933576,1634.5,1634.4,7.222599]
[1693677161623,0.94020556,1634.5,1634.4,7.222599]
[1693677161786,2.00338382,1634.5,1634.4,7.222599]
[1693677166323,1.57828696,1634.5,1634.4,4.58883]
[1693677166493,6.36230753,1634.5,1634.4,4.58883]
[1693677168220,6.36230753,1634.5,1634.4,13.76649]
[1693677168420,6.36230753,1634.5,1634.4,14.25762613]
[1693677168620,7.15821543,1634.5,1634.4,14.25762613]
[1693677170433,7.15821543,1634.5,1634.4,13.76649]
[1693677171128,7.15821543,1634.5,1634.4,9.17766]
[1693677172337,6.36230753,1634.5,1634.4,9.17766]
[1693677172946,6.36230753,1634.5,1634.4,10.73766]
[1693677174007,6.36230753,1634.5,1634.4,15.32649]
[1693677175720,5.19513253,1634.5,1634.4,15.32649]
[1693677178445,5.19513253,1634.5,1634.4,13.76649]
[1693677178742,6.07548293,1634.5,1634.4,13.76649]
[1693677181620,7.24260542,1634.5,1634.4,13.76649]
[1693677182659,8.83937687,1634.5,1634.4,9.17766]
[1693677182961,7.56195971,1634.5,1634.4,9.17766]
[1693677183760,8.84128554,1634.5,1634.4,9.17766]
[1693677184461,7.56195971,1634.5,1634.4,8.53974507]
[1693677197179,5.96518826,1634.5,1634.4,8.53974507]
[1693677198677,7.56481801,1634.5,1634.4,8.53974507]
[1693677198877,10.56481522,1634.5,1634.3,0.50114497]
[1693677199095,3.0,1634.3,1634.1,0.48395194]
[1693677199247,7.5175824,1634.2,1634.1,0.48395194]
[1693677199578,7.5175824,1634.2,1633.8,3.3937]
[1693677199881,0.63952338,1634.0,1633.9,1.56]
[1693677200245,2.23407541,1634.0,1633.9,1.56]
[1693677200451,0.63952338,1634.0,1633.9,1.56]
[1693677201057,2.23454862,1634.0,1633.9,1.56]
[1693677201389,3.29772688,1634.0,1633.9,10.69042]
[1693677201557,1.70270164,1634.0,1633.9,10.69042]
[1693677202186,0.63952338,1634.0,1633.9,10.69042]
[1693677203686,1.59880846,1634.1,1633.9,10.69042]
[1693677203893,4.88159896,1634.1,1633.9,10.69042]
[1693677204063,2.22322106,1634.1,1633.9,10.69042]
[1693677204595,0.63952338,1634.1,1634.0,1.56]
[1693677204770,3.29786106,1634.1,1634.0,1.56]
[1693677206490,3.29786106,1634.1,1634.0,15.32988]
[1693677207078,3.59558103,1634.1,1634.0,15.32988]
[1693677211191,4.55486611,1634.1,1634.0,15.32988]
[1693677211386,8.26259448,1634.1,1634.0,15.32988]
[1693677211693,7.6230711,1634.1,1634.0,15.32988]
[1693677212075,8.26199994,1634.1,1634.0,15.32988]
[1693677212275,7.55427157,1634.1,1634.0,15.32988]
[1693677212597,6.91534273,1634.1,1634.0,15.32988]
[1693677213097,3.91534273,1634.1,1634.0,15.32988]
[1693677213293,3.5949589,1634.1,1634.0,15.32988]
[1693677213460,1.99995629,1634.1,1634.0,15.32988]
[1693677216794,0.29771997,1634.1,1634.0,15.32988]
[1693677217300,0.63890125,1634.2,1634.0,15.32988]
[1693677217502,0.63890125,1634.2,1634.1,1.56]
[1693677217697,2.23377108,1634.2,1634.1,1.56]
[1693677217899,2.53230143,1634.2,1634.1,1.56]
[1693677218205,3.59554798,1634.2,1634.1,1.56]
[1693677219402,0.29853035,1634.2,1634.1,15.32904]
[1693677219607,0.63898678,1634.2,1634.1,15.32904]
[1693677219984,2.23384924,1634.2,1634.1,15.32904]
[1693677221305,5.4479123,1634.2,1634.1,6.14968]
[1693677221613,1.27797357,1634.2,1634.1,4.58968]
[1693677221801,4.89455203,1634.2,1634.1,4.58968]
[1693677222311,5.19308238,1634.2,1634.1,4.58968]
[1693677227114,5.19308238,1634.2,1634.1,6.14968]
[1693677227681,6.36127785,1634.2,1634.1,6.14968]
[1693677228193,7.36161233,1634.2,1634.1,6.14968]
[1693677228395,7.36161233,1634.2,1634.1,4.58968]
[1693677230526,7.36161233,1634.2,1634.1,9.17936]
[1693677233128,5.19347569,1634.2,1634.1,9.17936]
[1693677233332,3.91550212,1634.2,1634.1,10.73936]
[1693677233828,8.19347569,1634.2,1634.1,9.17936]
[1693677233993,9.36125633,1634.2,1634.0,6.63728554]
[1693677234190,4.89495718,1634.1,1634.0,2.04746554]
[1693677235320,5.87405263,1634.1,1634.0,2.04746554]
[1693677236529,5.87405263,1634.1,1634.0,6.63729554]
[1693677237131,6.17257696,1634.1,1634.0,6.63729554]
[1693677237500,6.17277174,1634.1,1634.0,6.63729554]
[1693677238434,7.34045318,1634.1,1634.0,5.07729554]
[1693677238638,7.34045318,1634.1,1634.0,0.48746554]
[1693677238804,7.65994657,1634.1,1633.9,4.43948117]
[1693677239130,6.82977846,1634.0,1633.9,4.43948117]
[1693677239928,6.82977846,1634.0,1633.8,2.0457512]
[1693677240131,6.82977846,1634.0,1633.8,0.4857512]
[1693677240132,3.61728147,1633.9,1633.8,0.4857512]
[1693677240533,4.89607986,1633.9,1633.7,1.56]
[1693677240720,0.63950876,1633.8,1633.7,1.56]
[1693677241027,3.29761286,1633.8,1633.7,1.56]
[1693677242332,3.29761286,1633.8,1633.7,6.15062]
[1693677243600,4.45631098,1633.8,1633.7,4.59062]
[1693677243828,5.73510937,1633.8,1633.6,6.15093]
[1693677244132,4.25757534,1633.7,1633.6,4.59093]
[1693677244331,5.19149655,1633.7,1633.6,6.15093]
[1693677244512,7.55508871,1633.7,1633.6,6.15093]
[1693677244716,4.55508871,1633.7,1633.6,6.15093]
[1693677245042,0.93770655,1633.7,1633.6,6.15093]
[1693677245195,0.29829728,1633.7,1633.6,6.15093]
[1693677245607,1.59868733,1633.8,1633.6,6.15093]
[1693677245801,0.63940927,1633.8,1633.6,6.15093]
[1693677246104,0.2965021,1633.7,1633.6,6.15093]
[1693677246305,0.2965021,1633.7,1633.6,6.97109488]
[1693677246901,0.63940927,1633.8,1633.6,6.97109488]
[1693677247335,2.23460369,1633.8,1633.7,1.56]
[1693677247561,1.70287115,1633.8,1633.7,1.56]
[1693677247727,0.63940927,1633.8,1633.7,1.56]
[1693677248558,4.38501577,1633.8,1633.6,6.15093]
[1693677248864,3.29791384,1633.7,1633.6,6.15093]
[1693677249861,4.2571919,1633.7,1633.6,6.15093]
[1693677250208,3.29791384,1633.7,1633.6,6.15093]
[1693677250445,1.70268592,1633.7,1633.6,6.15093]
[1693677251525,1.06346188,1633.7,1633.6,6.15093]
[1693677251725,1.5985021,1633.8,1633.6,6.15093]
[1693677251927,1.5985021,1633.8,1633.7,1.56]
[1693677252131,3.29801094,1633.8,1633.7,1.56]
[1693677252516,0.63922404,1633.8,1633.7,1.56]
[1693677252720,1.5985021,1633.9,1633.7,10.7416]
[1693677252915,5.05037828,1633.9,1633.7,4.5908]
[1693677253119,6.61728511,1633.8,1633.6,1.56]
[1693677253440,1.70248868,1633.7,1633.5,2.05071878]
[1693677253612,1.70248868,1633.7,1633.5,1.56]
[1693677256314,3.29784351,1633.7,1633.5,1.56]
[1693677257549,0.63893916,1633.7,1633.5,1.56]
[1693677257846,1.7025067,1633.7,1633.5,1.56]
[1693677258497,1.7025067,1633.7,1633.6,1.56]
[1693677259135,6.78655046,1633.8,1633.6,1.56]
[1693677259377,5.82813916,1633.8,1633.6,1.56]
[1693677259784,2.82813916,1633.8,1633.6,1.56]
[1693677260570,3.78655046,1633.8,1633.6,1.56]
[1693677260969,2.82813916,1633.8,1633.6,1.56]
[1693677261677,3.78655046,1633.8,1633.6,1.56]
[1693677261855,7.37231768,1633.8,1633.6,1.56]
[1693677263476,1.70247517,1633.7,1633.6,1.56]
[1693677264487,3.29779833,1633.7,1633.5,1.56]
[1693677264644,0.63893916,1633.7,1633.5,1.56]
[1693677264844,4.03507041,1633.7,1633.5,1.56]
[1693677265160,1.37617093,1633.7,1633.5,1.56]
[1693677266439,4.9934882,1633.7,1633.5,1.56]
[1693677266787,2.33458223,1633.7,1633.5,1.56]